[Event "Romanian Team Blitz Open 2022"]
[Site "Sebes"]
[Date "2022.12.04"]
[Round "6.15"]
[White "Ghimpu, Samuel-Timotei"]
[Black "Negrean, Andrei"]
[Result "1-0"]
[ECO "B48"]
[WhiteElo "2455"]
[BlackElo "1991"]
[Annotator "TA"]
[PlyCount "103"]
[EventDate "2022.12.04"]
[EventType "blitz"]
[EventCountry "ROU"]
[SourceTitle "playchess.com"]
[Source "ChessBase"]
[SourceQuality "1"]
[TimeControl "180+2"]

{[%evp 11,102,29,41,16,12,6,33,0,0,0,-6,-31,0,0,0,0,33,52,37,33,62,81,132,0,87,82,800,804,797,783,749,568,609,618,610,521,616,616,674,670,1105,1101,1094,1079,2692,1379,1352,1327,1281,1237,1380,1294,1232,927,7969,5477,29986,29987,29987,29988,29989,29990,29992,29993,29993,29992,29996,29994,29996,29995,29995,29996,29997,29997,29998,29995,29995,29995,29995,29996,29996,29997,29997,29998,29998,29998,29998,29999,29999,29998,29998,29998,29999]} 1. e4 {[%emt 0:03:04]} c5 2. Nf3 {[%emt 0:00:02]} Nc6 3. d4 cxd4 {[%emt 0:03:08]} 4. Nxd4 Qc7 5. Nc3 {[%emt 0:00:06][%cal Bb1c3,Bc3e2,Be2f4][%mdl 32]} e6 6. Be3 {[%emt 0:00:02]} a6 {[%emt 0:00:06]} 7. g4 $1 {[%mdl 4] 7.g4 is setting a new trend. B48: Sicilian: Taimanov: 5 Nc3 Qc7 6 Be3 a6 without Be2.} b5 {[%emt 0:00:02]} 8. Nxc6 {[%emt 0:00:04]} Qxc6 {[%emt 0:00:02]} 9. Qd2 {[%emt 0:00:02] White is slightly better.} b4 {[%emt 0:00:02]} 10. Ne2 Qxe4 {[%emt 0:00:02]} 11. Rg1 {Strongly threatening Bg2.} Qc4 {[%emt 0:00:02]} 12. Nf4 {[%emt 0:00:06]} Qc7 {[%emt 0:00:02]} 13. O-O-O {[%emt 0:00:02]} Bb7 {[%emt 0:00:02] [#]} 14. Bb6 $1 $36 {[%emt 0:00:02][%mdl 3136] White has compensation. White is more active.} Qc6 {[%emt 0:00:02]} 15. Bg2 {[%emt 0:00:02]} d5 {[%emt 0:00:02]} 16. Bd4 {[%emt 0:00:02]} Nf6 {[%emt 0:00:02] [#]} (16... Ne7 $142) 17. g5 $146 {[%emt 0:00:02]} (17. Bxf6 $1 $16 gxf6 {[#]} 18. Nxd5 $1 exd5 19. Rge1+ Kd7 20. Bxd5 Qxd5 21. Qf4) ({Predecessor:} 17. Bxf6 gxf6 18. Bxd5 exd5 19. Rge1+ Kd7 20. Nxd5 Qxd5 21. Qf4 Rd8 22. Qc4 Qd6 23. f4 {1-0 (75) Eugene,F (2375)-Chkhaidze,N (2301) Sant Ferran de ses Roques 2022}) 17... Nd7 {[%emt 0:00:02]} (17... Ne4 $11 {keeps the balance.} 18. Bxe4 dxe4) 18. Rge1 $16 {[%emt 0:00:02] White is much more active. The black rooks are badly placed.} Rg8 $2 {[%emt 0:00:02][%mdl 8192] This costs Black the game.} (18... O-O-O $16) 19. Bxd5 $18 {[%emt 0:00:02]} Qb5 {[%emt 0:00:02] [#]} 20. Nxe6 $1 {[%emt 0:00:02][%mdl 512]} fxe6 21. Bxe6 {Threatening mate with Bb6.} O-O-O {[%emt 0:00:04]} 22. Bxg8 {[%emt 0:00:04]} Bf3 {[%emt 0:00:02]} 23. Bxh7 {[%emt 0:00:02][%cal Bg8h7,Bh7f5,Bf5e6][%mdl 32]} Bxd1 {[%emt 0:00:02]} 24. Rxd1 {[%emt 0:00:02]} Be7 {[%emt 0:00:02]} 25. h4 {[%emt 0:00:02]} Nb6 {[%emt 0:00:02]} 26. Qe3 {[%emt 0:00:02]} Nd5 {[%emt 0:00:02]} 27. Qe6+ {[%emt 0:00:02]} Qd7 {[%emt 0:00:02]} 28. Bf5 {[%emt 0:00:02] White wants to mate with Qc6+.} Qxe6 {[%emt 0:00:02]} 29. Bxe6+ {[%emt 0:00:02] A strong pair of Bishops.} Kb7 30. Bxg7 {[%emt 0:00:02]} Nf4 {[%emt 0:00:04]} 31. Rxd8 Bxd8 {[%mdl 4096] Endgame KBB-KBN} 32. Bg4 {[%emt 0:00:04]} Ng2 {[%emt 0:00:04]} 33. Bf6 {[%emt 0:00:02] White threatens Bf3+ and mate.} Bxf6 34. gxf6 {White mates.} Nxh4 {[%emt 0:00:04] KB-KN} 35. Bh5 {[%emt 0:00:04]} Nf5 {[%emt 0:00:02]} 36. f7 {[%emt 0:00:02]} Nd6 {[%emt 0:00:02]} 37. f8=Q {[%emt 0:00:02]} Nb5 {[%emt 0:00:02]} 38. Qxb4 {[%emt 0:00:02]} Ka7 39. a4 {[%emt 0:00:02]} Nc7 40. Qc5+ {[%emt 0:00:02]} Kb7 {[%emt 0:00:06]} 41. a5 Na8 {[%emt 0:00:02]} 42. Bf3+ {[%emt 0:00:04]} Kb8 43. Bxa8 {[%emt 0:00:02]} Kxa8 44. f4 {[%emt 0:00:02]} Kb7 45. f5 Kb8 46. f6 {[%emt 0:00:04]} Kb7 47. f7 {[%emt 0:00:02]} Ka8 48. Qc6+ {[%emt 0:00:02]} Ka7 49. Qb6+ Ka8 50. Qxa6+ Kb8 {[%emt 0:00:18]} 51. Qb6+ {[%emt 0:00:06]} Ka8 52. f8=Q# {[%emt 0:00:02] Weighted Error Value: White=0.36/Black=0.34} 1-0

[Event "Romanian Team Blitz Open 2022"]
[Site "Sebes"]
[Date "2022.12.04"]
[Round "6.16"]
[White "Tampea, Radu"]
[Black "Talu, Mircea"]
[Result "0-1"]
[ECO "D00"]
[WhiteElo "2110"]
[BlackElo "2327"]
[Annotator "TA"]
[PlyCount "86"]
[EventDate "2022.12.04"]
[EventType "blitz"]
[EventCountry "ROU"]
[SourceTitle "playchess.com"]
[Source "ChessBase"]
[SourceQuality "1"]
[TimeControl "180+2"]

{[%evp 9,85,-7,10,-4,79,58,70,71,62,60,73,74,75,71,78,56,65,54,47,5,31,5,67,41,42,44,116,104,119,12,37,15,19,-9,0,-20,-3,-43,-25,-43,-43,-43,-43,-77,-68,-107,-91,-137,-122,-122,-122,-137,-126,-140,-137,-206,141,-428,-423,-511,-501,-408,-289,-385,-145,-143,-156,-119,-145,-142,-96,-112,0,1,83,-158,-161,-29999]} 1. d4 {[%emt 0:00:01]} Nf6 {[%emt 0:00:01]} 2. Bf4 {[%emt 0:00:01]} d5 {[%emt 0:00:02]} 3. e3 {[%emt 0:00:01]} c5 {[%emt 0:00:01]} 4. c3 {[%emt 0:00:01]} Nc6 {[%emt 0:00:04]} 5. Nd2 {[%emt 0:00:01]} Bg4 {[%emt 0:00:39]} 6. Qb3 {[%emt 0:00:09] D00: 1 d4 d5: Unusual lines.} Qb6 {[%emt 0:00:02]} (6... Qd7 $11 {keeps the balance.}) 7. dxc5 $16 {[%emt 0:00:08]} Qxb3 {[%emt 0:00:01]} 8. axb3 {[%emt 0:00:01][%cal Ba2b3,Bb3b4,Bb4b5][%mdl 32] White is slightly better.} e5 {[%emt 0:00:02] Inhibits b4.} 9. Bg3 {[%emt 0:00:01]} Bxc5 {[%emt 0:00:07]} 10. b4 {[%emt 0:00:01]} Bd6 {[%emt 0:00:01]} 11. Ngf3 {[%emt 0:00:09] [#] Hoping for b5.} Nh5 $146 {[%emt 0:00:15]} ({Predecessor:} 11... Nd7 12. b5 Ne7 13. c4 O-O 14. Bd3 Bb4 15. Nxe5 Nxe5 16. Bxe5 dxc4 17. Bxc4 Rfd8 {1-0 (62) Nasir,Z (2057)-Musat,A (2378) Chess.com INT 2022}) 12. b5 {[%emt 0:01:21]} Nxg3 {[%emt 0:00:03]} 13. hxg3 {[%emt 0:00:01]} Ne7 {[%emt 0:00:06]} 14. Be2 {[%emt 0:00:18]} O-O {[%emt 0:00:20]} 15. O-O {[%emt 0:00:03]} Ng6 {[%emt 0:00:37]} ({Black should play} 15... f6 $11) 16. Ra4 {[%emt 0:00:16]} e4 {[%emt 0:00:05]} 17. Nd4 {[%emt 0:00:04]} Bd7 {[%emt 0:00:29]} (17... Bxe2 $14 18. Nxe2 Rfd8) 18. Rfa1 {[%emt 0:00:03]} Bc5 {[%emt 0:00:02]} 19. R4a2 {[%emt 0:00:44]} (19. c4 $1 $16) 19... Rab8 {[%emt 0:00:10]} 20. Kf1 {[%emt 0:00:09]} Ne5 {[%emt 0:00:04]} 21. N2b3 {[%emt 0:00:03] Pair of Knights!} Bb6 {[%emt 0:00:02]} 22. Nd2 {[%emt 0:00:02]} Rfc8 {[%emt 0:00:04]} 23. Ke1 {[%emt 0:00:03]} f5 {[%emt 0:00:14]} 24. f4 {[%emt 0:00:01]} Nf7 {[%emt 0:00:03]} 25. Bd1 {[%emt 0:00:03]} Nd6 {[%emt 0:00:02]} 26. Bb3 {[%emt 0:00:01]} Rc5 $1 {[%emt 0:00:01]} (26... Nxb5 27. Bxd5+ Kf8 28. g4 $14) 27. Ke2 {[%emt 0:00:06]} Nxb5 {[%emt 0:00:02]} (27... Bxb5+ $6 28. Nxb5 Rxb5 29. Rd1 $11) 28. Nxb5 {[%emt 0:00:02]} (28. g4 $142) 28... Bxb5+ $17 {[%emt 0:00:02]} ({But not} 28... Rxb5 29. Ba4 $14) 29. Kf2 {[%emt 0:00:00][%cal Og3g4]} Bd3 {[%emt 0:00:02] Inhibits g4.} 30. Ra4 {[%emt 0:00:01]} Kf7 {[%emt 0:00:02]} 31. Rd4 {[%emt 0:00:01]} Rd8 {[%emt 0:00:03]} 32. c4 {[%emt 0:00:01]} (32. Rh1 $17 {might work better.}) 32... Rxc4 $2 {[%emt 0:00:07] [#]} 33. Nxc4 {[%emt 0:00:02][%mdl 8192]} (33. Rxd5 $1 $16 {[%mdl 512]} Rxd5 34. Nxc4) 33... Bxd4 $19 {[%emt 0:00:01]} ({Inferior is} 33... Bxc4 34. Rxc4 dxc4 35. Bxc4+ Ke7 36. Ke2 $17) 34. exd4 {[%emt 0:00:03]} dxc4 {[%emt 0:00:01][%mdl 4096] Endgame KRB-KRB} 35. Bd1 {[%emt 0:00:03]} a6 {[%emt 0:00:03] White must now prevent ...Rd6.} (35... Rxd4 $2 {loses.} 36. Rxa7 Rd7 37. g4 $19) 36. Ke3 {[%emt 0:00:01]} h6 $2 {[%emt 0:00:03]} (36... Rd6 $19 {is more deadly.} 37. Ra5 g6) 37. Ra5 $17 {[%emt 0:00:01]} g6 {[%emt 0:00:02] Threatens to win with ...h5.} 38. g4 {[%emt 0:00:00] Prevents h5.} fxg4 {[%emt 0:00:01]} 39. Bxg4 {[%emt 0:00:01]} Rd6 {[%emt 0:00:02]} (39... h5 $142 40. Bh3 Rd6) 40. Rc5 {[%emt 0:00:01]} Rb6 {[%emt 0:00:01]} (40... h5 $17 41. Bc8 Kf8) 41. Rc7+ $11 {[%emt 0:00:01]} Kf6 {[%emt 0:00:01]} (41... Kg8 $1 $11 {remains equal.}) 42. Bc8 $2 {[%emt 0:00:01]} (42. d5 $16 {is necessary to keep the advantage.}) 42... Rxb2 $17 {[%emt 0:00:02][%csl Gd3][%cal Rb2e2]} 43. Rxb7 $2 {[%emt 0:00:01]} (43. d5 $19) 43... Re2# {[%emt 0:00:01] Weighted Error Value: White=0.62/Black=0.46} 0-1

[Event "Romanian Team Blitz Open 2022"]
[Site "Sebes"]
[Date "2022.12.04"]
[Round "6.17"]
[White "Patrascu, Catalin-Lucian"]
[Black "Szabo, Gergely-Andras-Gyula"]
[Result "0-1"]
[ECO "C11"]
[WhiteElo "2279"]
[BlackElo "2514"]
[Annotator "TA"]
[PlyCount "80"]
[EventDate "2022.12.04"]
[EventType "blitz"]
[EventCountry "ROU"]
[SourceTitle "playchess.com"]
[Source "ChessBase"]
[SourceQuality "1"]
[TimeControl "180+2"]

{[%evp 11,80,0,43,15,27,18,26,18,43,0,0,0,52,42,86,35,66,19,18,8,39,33,20,-168,-176,-174,-177,-187,-178,-175,-168,-279,-288,-389,-387,-484,-265,-267,-264,-267,-267,-275,-249,-290,-287,-346,-318,-310,-310,-324,-299,-328,-325,-324,-305,-369,-379,-371,-369,-373,-352,-381,-373,-366,-339,-400,-404,-404,-398,-29997,-29998]} 1. e4 {[%emt 0:00:01]} e6 {[%emt 0:00:00]} 2. d4 {[%emt 0:00:02]} d5 {[%emt 0:00:01]} 3. Nc3 {[%emt 0:00:01]} Nf6 {[%emt 0:00:02]} 4. e5 {[%emt 0:00:02]} Nfd7 {[%emt 0:00:02]} 5. f4 {[%emt 0:00:00]} c5 {[%emt 0:00:01]} 6. Nf3 {[%emt 0:00:01]} b6 {[%emt 0:00:04]} 7. Be3 {[%emt 0:00:06] C11: French: Classical System: 4 e5 and 4 Bg5 dxe4.} (7. f5 $5 {[%cal Rf5e6]} a6 8. fxe6 fxe6 9. Ng5 $16) 7... Be7 {[%emt 0:00:01]} 8. Qd2 {[%emt 0:00:02]} Nc6 {[%emt 0:00:09] [#]} 9. Qf2 $146 {[%emt 0:00:28] White has an edge.} (9. Bb5 $5 {[%cal Rb5c6]} Bb7 10. Rd1 $11) ({Predecessor:} 9. Be2 Bb7 10. O-O O-O 11. Nd1 cxd4 12. Nxd4 Nxd4 13. Bxd4 Nc5 14. Nf2 Qc8 15. Rfe1 Ne4 16. Nxe4 dxe4 {1-0 (80) Giri,A (2779)-Bareev,E (2643) Amsterdam 2019}) 9... Bb7 {[%emt 0:00:05]} 10. h4 {[%emt 0:00:03]} cxd4 {[%emt 0:00:04]} 11. Nxd4 {[%emt 0:00:01]} Nxd4 {[%emt 0:00:02]} (11... Bb4 $11) 12. Bxd4 $14 {[%emt 0:00:01]} Nc5 {[%emt 0:00:17]} 13. O-O-O {[%emt 0:00:11]} (13. Bb5+ $16 Kf8 14. h5) 13... O-O {[%emt 0:00:05]} 14. f5 {[%emt 0:00:15]} (14. Kb1 $14) 14... exf5 $11 {[%emt 0:00:01]} 15. Qxf5 {[%emt 0:00:03]} Ne6 {[%emt 0:00:02]} (15... Qc8 {simplifies} 16. Qxc8 Raxc8 17. g3 Ne6) 16. Bf2 {[%emt 0:00:06]} (16. Bd3 g6 17. Qg4 Bc5 $11) 16... d4 {[%emt 0:00:10]} 17. Bc4 $2 {[%emt 0:00:32] [#] This costs White the game.} (17. Bd3 $2 g6 18. Qg4 dxc3 $19) (17. h5 $11 {and White stays safe.}) 17... Qc8 $1 $19 {[%emt 0:00:05]} (17... Bxg2 18. Rhg1 Qc8 19. Nd5 (19. Bd3 g6 $17) 19... Qxc4 20. Nxe7+ Kh8 21. Rxg2 $14) (17... g6 18. Qg4 $11) 18. Nd5 {[%emt 0:00:15]} (18. Bd3 $2 g6 19. Qg4 dxc3 $19) 18... Qxc4 {[%emt 0:00:09]} 19. Nxe7+ {[%emt 0:01:30]} Kh8 {...Rae8 is the strong threat.} 20. h5 {[%emt 0:00:00] [#]} h6 $1 $36 {[%emt 0:00:06][%mdl 2048] White must now prevent ...Rae8. Keeping White busy.} ({Don't take} 20... Qxa2 21. h6 Qa1+ 22. Kd2 Qa5+ 23. Kc1 Qa1+ 24. Kd2 Qa5+ 25. Ke2 $16) 21. Bh4 {[%emt 0:00:00]} (21. Qd3 $142 Qxa2 22. Qa3) 21... Rae8 {[%emt 0:00:14]} ({Worse is} 21... Bxg2 22. Rhg1 d3 23. Rxg2 $17) 22. Kb1 {[%emt 0:00:00]} Qc5 {[%emt 0:00:04]} ({Not} 22... Bxg2 23. Rh2 Bd5 24. b3 $17) 23. c3 {[%emt 0:00:00]} Rxe7 {[%emt 0:00:11]} (23... dxc3 $142 24. Qd3 Rxe7 25. Bxe7 Qxe7 26. Qxc3 Bxg2) 24. cxd4 {[%emt 0:00:00]} Nxd4 {[%emt 0:00:02]} 25. Bxe7 {[%emt 0:00:03]} Nxf5 {[%emt 0:00:03]} 26. Bxc5 {[%emt 0:00:01]} bxc5 {[%emt 0:00:01]} 27. Rd7 {[%emt 0:00:04]} Bxg2 {[%emt 0:00:01]} 28. Rg1 {[%emt 0:00:03]} Be4+ {[%emt 0:00:02]} 29. Kc1 {[%emt 0:00:01]} Nd4 {[%emt 0:00:01] Hoping for ...Ne2+.} 30. Rf1 {[%emt 0:00:03]} Kg8 {[%emt 0:00:09]} 31. Rxa7 {[%emt 0:00:02]} Nc6 {[%emt 0:00:01]} 32. Rc7 {[%emt 0:00:03]} Nxe5 {[%emt 0:00:01]} 33. Kd2 {[%emt 0:00:05]} Rd8+ {[%emt 0:00:03]} 34. Ke3 {[%emt 0:00:01]} Nc4+ {[%emt 0:00:07]} 35. Kf4 {[%emt 0:00:01]} Bd3 {[%emt 0:00:02]} 36. Rf2 {[%emt 0:00:04]} Rd4+ {[%emt 0:00:04]} 37. Kg3 {[%emt 0:00:00]} Ne5 {[%emt 0:00:03]} 38. Rxc5 {[%emt 0:00:02]} Rg4+ {[%emt 0:00:02]} 39. Kh3 {[%emt 0:00:01]} Rg5 {[%emt 0:00:00]} 40. Rd2 $2 {[%emt 0:00:03]} (40. Kh4 $19) 40... Bf5+ {[%emt 0:00:03] Weighted Error Value: White=0.56/Black=0.19 (very precise)} 0-1

[Event "Romanian Team Blitz Open 2022"]
[Site "Sebes"]
[Date "2022.12.04"]
[Round "6.18"]
[White "Nevednichy, Vladislav"]
[Black "Creanga, Robert-Ionut"]
[Result "1-0"]
[ECO "A00"]
[WhiteElo "2499"]
[BlackElo "2190"]
[Annotator "TA"]
[PlyCount "99"]
[EventDate "2022.12.04"]
[EventType "blitz"]
[EventCountry "ROU"]
[SourceTitle "playchess.com"]
[Source "ChessBase"]
[SourceQuality "1"]
[TimeControl "180+2"]

{[%evp 11,99,-46,-42,-47,-55,-58,-30,-37,-38,-31,-31,-56,0,0,-16,-49,-17,-8,6,-19,0,-16,-14,-16,-6,-8,-14,-24,0,-24,85,17,139,0,118,0,3,-48,-50,-50,-43,-37,-41,-42,22,23,29,12,40,0,0,0,0,0,0,0,2,-11,0,-35,-35,-112,-58,-46,0,0,84,84,82,19,252,229,238,235,229,227,235,108,206,179,177,135,133,85,106,0,0,0,29978,29979]} 1. b4 {[%emt 0:00:01]} e5 {[%emt 0:00:02]} 2. Bb2 {[%emt 0:00:01][%cal Bc1b2,Bb2e5,Be5f4][%mdl 32]} Bxb4 {[%emt 0:00:01]} 3. Bxe5 {[%emt 0:00:01]} Nf6 {[%emt 0:00:01]} 4. e3 {[%emt 0:00:00]} O-O {[%emt 0:00:05]} 5. Nf3 {[%emt 0:00:01]} d5 {[%emt 0:00:02]} 6. Be2 {[%emt 0:00:07]} c5 {[%emt 0:00:01]} 7. O-O {[%emt 0:00:07] A00: Irregular Openings.} Nc6 {[%emt 0:00:02]} 8. Bf4 {[%emt 0:00:03]} h6 {[%emt 0:00:10]} 9. h3 {[%emt 0:00:01] [#] Black has an edge.} Be6 $146 {[%emt 0:00:20]} ({Predecessor:} 9... Bf5 10. d3 Re8 11. Qc1 Qd7 12. c4 dxc4 13. Qxc4 Nd5 14. Bg3 Nb6 15. Qb3 Na5 {½-½ (60) Teichmann,E (2325)-Charles,G (2148) Parramatta 2010}) 10. c3 {[%emt 0:00:14]} Ba5 {[%emt 0:00:03]} 11. d4 {[%emt 0:00:02]} Bc7 {[%emt 0:00:16]} (11... Ne4 {is interesting.} 12. dxc5 Rc8 13. Nd4 Nxc5 14. Nb3 Ne4) 12. Bxc7 {[%emt 0:00:09]} Qxc7 {[%emt 0:00:02]} 13. Nbd2 {[%emt 0:00:04]} b6 {[%emt 0:00:37]} 14. Bb5 {[%emt 0:00:06]} Ne7 {[%emt 0:00:15]} 15. Ne5 {[%emt 0:00:05]} Ne4 {[%emt 0:00:12]} (15... c4 {simplifies} 16. Ba6 Nc6 17. Nxc6 Qxc6 18. a4 Bf5) 16. Rc1 {[%emt 0:00:26]} f6 {[%emt 0:00:08]} 17. Nd3 {[%emt 0:00:02]} Nd6 {[%emt 0:00:04]} 18. Nf4 {[%emt 0:00:05]} Bf7 {[%emt 0:00:10]} 19. Bd3 {[%emt 0:00:04]} g5 {[%emt 0:00:04] White must now prevent ...c4.} (19... c4 $5 {[%cal Rc4d3]} 20. Bc2 Rad8 $11) 20. Ne2 {[%emt 0:00:03]} Kg7 {[%emt 0:00:08]} (20... c4 $1 $11 21. Bc2 Bh5) 21. Ng3 {[%emt 0:00:06]} (21. c4 $16) 21... Bg6 {[%emt 0:00:22]} (21... c4 $1 $11 22. Bc2 Bg6) 22. Nh5+ {[%emt 0:00:37]} (22. Bxg6 $16 Nxg6 23. c4 (23. Qf3 Qf7 $11)) 22... Kh7 {[%emt 0:00:11]} (22... Bxh5 $1 $11 {keeps the balance.} 23. Qxh5 c4) 23. Bc2 {[%emt 0:00:18]} (23. Bxg6+ $16 Nxg6 24. c4) 23... f5 {[%emt 0:00:03]} 24. Re1 {[%emt 0:00:12]} (24. Ng3 $11) 24... Ne4 $15 {[%emt 0:00:12]} 25. Bxe4 {[%emt 0:00:14]} dxe4 {[%emt 0:00:06]} (25... fxe4 26. c4 $11) 26. Nc4 {[%emt 0:00:04]} Rad8 {[%emt 0:00:05]} (26... Nc6 {simplifies} 27. Ng3 Rad8 28. Qa4 Rd5) 27. Ne5 {[%emt 0:00:13]} Nc6 {[%emt 0:00:01]} (27... Be8 $15) 28. Nxg6 $11 Kxg6 {[%emt 0:00:01]} 29. Ng3 {[%emt 0:00:03][%cal Oh3h4]} Na5 {[%emt 0:00:06]} 30. Qh5+ {[%emt 0:00:07]} Kh7 $1 {[%emt 0:00:04]} 31. h4 {[%emt 0:00:03]} Qf7 {[%emt 0:00:01]} 32. hxg5 {[%emt 0:00:04]} Qxh5 {[%emt 0:00:02]} (32... Qxa2 $2 33. Qxh6+ Kg8 34. Nh5 $18) 33. Nxh5 {[%emt 0:00:01] And now Nf4 would win.} hxg5 {[%emt 0:00:01]} 34. Ng3 {[%emt 0:00:01]} Kg6 {[%emt 0:00:01]} 35. Red1 {[%emt 0:00:03]} Nc4 {[%emt 0:00:02]} 36. Kf1 {[%emt 0:00:05]} (36. a4 $15) 36... Rh8 {[%emt 0:00:01]} ({Better is} 36... Rde8 $17 {...f4 is the strong threat.} 37. dxc5 f4 38. exf4 gxf4) 37. Ke2 $15 {[%emt 0:00:01]} Rh2 {[%emt 0:00:07]} (37... Nb2 $15 38. Rh1 Rh4) 38. dxc5 $11 {[%emt 0:00:02]} Rxd1 (38... Rc8 $1 $11) 39. Rxd1 $16 {[%emt 0:00:00] Strongly threatening Rd4.} bxc5 $11 {[%emt 0:00:04][%mdl 4096] Endgame [#] KRN-KRN} 40. Rd5 {[%emt 0:00:02]} ({White should try} 40. Kf1 $1 $16) 40... f4 $2 {[%emt 0:00:03]} (40... Rxg2 $2 41. Nxf5 (41. Rxf5 Rxg3 42. Rxc5 Rg1 $16) 41... Nb6 42. Rxc5 $18) (40... Nxe3 $1 $11 41. Rd6+ (41. Kxe3 f4+ 42. Kxe4 fxg3 $11) (41. Rxc5 Ng4 $11) 41... Kg7) 41. exf4 {[%emt 0:00:04]} (41. Rxc5 $2 {is the wrong capture.} fxg3 42. Rxc4 Rxg2 $19) 41... gxf4 {[%emt 0:00:01]} 42. Nxe4 {[%emt 0:00:01]} Rxg2 {[%emt 0:00:01]} 43. Rxc5 {[%emt 0:00:01]} Nb2 {[%emt 0:00:05]} 44. Nd2 {[%emt 0:00:07]} (44. Rb5 $18 {and White stays clearly on top.} Nc4 45. Kd3) 44... Na4 {[%emt 0:00:02]} (44... Rxf2+ $16 {might work better.} 45. Kxf2 Nd3+ 46. Kf3 Nxc5) 45. Rc6+ {[%emt 0:00:02]} Kf5 {[%emt 0:00:01]} 46. Nf3 {[%emt 0:00:05] aiming for Nh4+.} Rg7 {[%emt 0:00:02]} 47. Nd4+ {[%emt 0:00:02]} (47. Kd3 $142) 47... Ke4 $16 {[%emt 0:00:02]} 48. f3+ {[%emt 0:00:07]} (48. Re6+ $16 Kd5 49. Ra6 f3+ 50. Kd2 (50. Kxf3 Nxc3 51. Nf5 Rb7 $16)) 48... Kd5 $11 {[%emt 0:00:00]} 49. Kd3 {[%emt 0:00:00] White threatens c4+ and mate.} Nc5+ $2 {[%emt 0:00:02][%mdl 8192] [#]} (49... Nb2+ $11 50. Ke2 Rh7) 50. Rxc5+ $1 {[%emt 0:00:15][%mdl 512] Weighted Error Value: White=0.29 (precise) /Black=0.45} 1-0